bitfinex/quotes_BTCUSD_20250620
["timestamp","ask_amount","ask_price","bid_price","bid_amount"]
[1750432009074,0.03371418,104310.0,104300.0,0.23124531]
[1750432009500,0.02412719,104310.0,104300.0,0.23124531]
[1750432009916,0.04329952,104310.0,104300.0,0.23124531]
[1750432010133,0.0288497,104340.0,104300.0,0.45488846]
[1750432010347,0.00963292,104340.0,104330.0,0.23003808]
[1750432010563,0.01921642,104340.0,104330.0,0.23003808]
[1750432010777,4.97e-05,104340.0,104330.0,0.25901021]
[1750432010989,0.01921642,104340.0,104330.0,0.23984129]
[1750432011198,0.03833766,104330.0,104320.0,0.37233274]
[1750432011406,0.04329391,104330.0,104320.0,0.22046377]
[1750432011618,0.02412499,104330.0,104320.0,0.23004929]
[1750432011821,0.03370931,104330.0,104320.0,0.23004929]
[1750432012031,0.01454085,104330.0,104320.0,0.23004929]
[1750432012245,0.3496331,104340.0,104330.0,0.2204532]
[1750432012463,0.36417386,104340.0,104330.0,0.2204532]
[1750432012883,0.37375736,104340.0,104330.0,0.2204532]
[1750432013345,0.35459055,104340.0,104330.0,0.2204532]
[1750432013560,0.36417395,104340.0,104330.0,0.2204532]
[1750432013773,0.35659055,104340.0,104330.0,0.2204532]
[1750432013984,0.37575754,104340.0,104330.0,0.2204532]
[1750432014408,0.36417395,104340.0,104330.0,0.2204532]
[1750432014652,0.37375745,104340.0,104330.0,0.24982718]
[1750432014853,0.3929249,104340.0,104330.0,0.25082718]
[1750432015061,0.39292481,104340.0,104330.0,0.25182718]
[1750432015271,0.38334104,104340.0,104330.0,0.25182718]
[1750432015482,0.37375745,104340.0,104330.0,0.25182718]
[1750432015689,0.36417395,104340.0,104330.0,0.25182718]
[1750432015925,0.01459055,104340.0,104330.0,0.24682718]
[1750432016145,0.01459055,104340.0,104330.0,0.30969764]
[1750432016354,4.97e-05,104340.0,104330.0,0.24682718]
[1750432016791,4.97e-05,104340.0,104330.0,0.40560611]
[1750432017249,4.97e-05,104340.0,104330.0,0.97455145]
[1750432017492,4.97e-05,104340.0,104330.0,1.05251153]
[1750432017716,4.97e-05,104340.0,104330.0,1.10191153]
[1750432018389,4.97e-05,104340.0,104330.0,1.10491153]
[1750432018822,4.97e-05,104340.0,104330.0,1.44891153]
[1750432019030,4.97e-05,104340.0,104330.0,1.45876327]
[1750432019396,5e-05,104370.0,104340.0,0.68168104]
[1750432019602,5e-05,104370.0,104360.0,0.22038983]
[1750432019976,5e-05,104370.0,104360.0,0.34666876]
[1750432020183,5e-05,104370.0,104360.0,0.37956876]
[1750432020391,5e-05,104370.0,104360.0,0.31566876]
[1750432020658,0.00047146,104370.0,104360.0,0.20122578]
[1750432020861,0.26838185,104370.0,104360.0,0.20122633]
[1750432021081,0.01454085,104360.0,104350.0,0.22041004]
[1750432021292,0.03370454,104360.0,104350.0,0.21082774]
[1750432021499,0.01916488,104350.0,104340.0,0.21084775]
[1750432021702,0.01916479,104350.0,104340.0,0.23001539]
[1750432021883,0.5653493,104360.0,104350.0,0.21082847]
[1750432022115,0.7361493,104360.0,104350.0,0.20124571]
[1750432022347,0.7361493,104360.0,104340.0,0.20126481]
[1750432022348,0.22536941,104350.0,104340.0,0.20126481]
[1750432022586,0.2445353,104350.0,104340.0,0.20126509]
[1750432022793,0.22538953,104340.0,104330.0,0.19269941]
[1750432023013,0.27525717,104340.0,104330.0,0.22145357]
[1750432023239,0.55502883,104340.0,104330.0,0.001]
[1750432023454,0.55502883,104340.0,104330.0,0.20228438]
[1750432023669,0.9137789,104340.0,104330.0,0.001]
[1750432023879,5.9951449,104340.0,104330.0,0.001]
[1750432024091,6.0451449,104340.0,104330.0,0.001]
[1750432025206,5.9947849,104340.0,104330.0,0.001]
[1750432025418,5.9987849,104340.0,104330.0,0.001]
[1750432025806,5.9947849,104340.0,104330.0,0.001]
[1750432026042,6.02379573,104340.0,104330.0,0.001]
[1750432027514,6.07379573,104340.0,104330.0,0.001]
[1750432027722,6.02375573,104340.0,104330.0,0.001]
[1750432028116,6.02775573,104340.0,104330.0,0.001]
[1750432028612,6.02375573,104340.0,104330.0,0.001]
[1750432028820,6.07775573,104340.0,104330.0,0.001]
[1750432029030,6.02775573,104340.0,104330.0,0.001]
[1750432029240,6.05655473,104340.0,104330.0,0.001]
[1750432029671,5.83683473,104340.0,104330.0,0.001]
[1750432029881,0.67124402,104340.0,104330.0,0.001]
[1750432030108,0.92236402,104340.0,104330.0,0.001]
[1750432030314,5.95437002,104340.0,104330.0,0.001]
[1750432030495,5.96891087,104340.0,104330.0,0.001]
[1750432030700,6.06418072,104340.0,104330.0,0.001]
[1750432031166,6.06018072,104340.0,104330.0,0.001]
[1750432031579,5.78236072,104340.0,104330.0,0.001]
[1750432031788,0.65508487,104340.0,104330.0,0.001]
[1750432032005,0.82572487,104340.0,104330.0,0.001]
[1750432032873,5.92103087,104340.0,104330.0,0.001]
[1750432035204,5.92103087,104340.0,104330.0,0.19269941]
[1750432035419,0.45381978,104340.0,104330.0,0.2214532]
[1750432035632,0.004,104340.0,104330.0,0.34093172]
[1750432035847,0.004,104340.0,104330.0,0.49911065]
[1750432036739,0.004,104340.0,104330.0,0.66967065]
[1750432037153,0.004,104340.0,104330.0,0.67167065]
[1750432037603,0.0031,104340.0,104330.0,1.39061599]
[1750432037824,0.00047146,104370.0,104360.0,0.28438983]
[1750432038035,0.00047146,104370.0,104360.0,0.33390993]
[1750432038453,0.00047146,104370.0,104360.0,0.28438983]
[1750432038891,0.00047146,104370.0,104360.0,0.37966876]
[1750432039104,0.00047146,104370.0,104360.0,0.22038983]
[1750432039515,0.00247146,104370.0,104360.0,0.22038983]
[1750432040389,0.01205211,104370.0,104360.0,0.22038983]
[1750432040611,0.00247146,104370.0,104360.0,0.26666993]
[1750432040834,0.00247146,104370.0,104360.0,0.22038983]
[1750432041050,0.00247146,104370.0,104360.0,0.37856876]
[1750432042736,0.02659278,104370.0,104360.0,0.21080826]
[1750432042938,0.05533528,104370.0,104360.0,0.22038983]
[1750432043152,0.12456882,104370.0,104360.0,0.22038983]
[1750432043356,0.03617334,104370.0,104360.0,0.22038983]
[1750432043774,0.05533491,104370.0,104360.0,0.22038992]
[1750432044074,0.06491584,104370.0,104360.0,0.21080826]
[1750432044265,0.04575408,104370.0,104360.0,0.21080826]
[1750432044442,0.04575408,104370.0,104360.0,0.22038983]
[1750432044856,0.05533501,104370.0,104360.0,0.22038983]
[1750432045057,0.02163267,104370.0,104360.0,0.22038983]
[1750432045291,0.00247146,104370.0,104360.0,0.28488983]
[1750432045497,0.00247146,104370.0,104360.0,0.38016876]
[1750432045701,0.00247146,104370.0,104360.0,0.34716876]
[1750432046135,0.00247146,104370.0,104360.0,0.38006876]
[1750432046347,0.00247146,104370.0,104360.0,0.9490141]
[1750432046570,0.00247146,104370.0,104360.0,1.04420921]
[1750432046783,0.00247146,104370.0,104360.0,0.47526387]
[1750432047217,0.00247146,104370.0,104360.0,1.09324921]
[1750432048101,0.00247146,104370.0,104360.0,1.08824921]
[1750432048313,0.00247146,104370.0,104360.0,1.23824921]
[1750432048754,0.043275,104400.0,104390.0,0.22032649]
[1750432048981,0.03383774,104400.0,104390.0,0.22032649]
[1750432049223,0.01468222,104400.0,104390.0,0.22032649]
[1750432049665,0.2062531,104400.0,104380.0,0.20117093]
[1750432049882,0.01915753,104390.0,104380.0,0.38103075]
[1750432050097,0.03369838,104390.0,104380.0,0.21075075]
[1750432050331,0.03369838,104390.0,104380.0,0.38103075]
[1750432050550,0.01454085,104390.0,104380.0,0.40019067]
[1750432050976,0.0432772,104390.0,104380.0,0.40019067]
[1750432051196,0.0336982,104390.0,104380.0,0.40015067]
[1750432051417,0.01454085,104390.0,104380.0,0.40015067]
[1750432051903,0.01554085,104390.0,104380.0,0.45932512]
[1750432052321,0.01554085,104390.0,104380.0,0.22991067]
[1750432052322,0.04427757,104390.0,104380.0,0.22991067]
[1750432052531,0.23586744,104390.0,104380.0,0.38095121]
[1750432052741,0.03469839,104390.0,104380.0,0.40011076]
[1750432052949,0.02511957,104390.0,104380.0,0.22991076]
[1750432053180,0.02511957,104390.0,104380.0,0.40011076]
[1750432053370,0.03469848,104390.0,104380.0,0.40011076]
[1750432053586,0.24544598,104390.0,104380.0,0.22991076]
[1750432053812,0.29012039,104390.0,104380.0,0.2011712]
[1750432054030,0.29012039,104390.0,104380.0,0.22033131]
[1750432054263,0.28054148,104390.0,104380.0,0.22033131]
[1750432054696,0.28054148,104390.0,104380.0,0.23949105]
[1750432054697,0.23586781,104390.0,104380.0,0.23949105]
[1750432055123,0.03469912,104390.0,104380.0,0.23949059]
[1750432055347,0.04427747,104390.0,104380.0,0.23949059]
[1750432055580,0.05385665,104390.0,104380.0,0.23949059]
[1750432056027,0.32156746,104390.0,104380.0,0.21076787]
[1750432056242,0.23488863,104380.0,104370.0,0.2011748]
[1750432056456,0.23488863,104380.0,104360.0,0.20122614]
[1750432056457,0.05286465,104370.0,104360.0,0.20122614]
[1750432056669,0.05286465,104370.0,104360.0,0.22038983]
[1750432056670,0.03370242,104370.0,104360.0,0.22038983]
[1750432057146,0.74170795,104380.0,104370.0,0.20120714]
[1750432057358,0.55967992,104380.0,104370.0,0.22036872]
[1750432057571,0.52927928,104380.0,104370.0,0.22036872]
[1750432057780,0.5388592,104380.0,104370.0,0.22036872]
[1750432057999,0.5484393,104380.0,104370.0,0.22036872]
[1750432058447,0.5388592,104380.0,104370.0,0.22036872]
[1750432058655,0.54943939,104380.0,104370.0,0.22036872]
[1750432058876,0.54943939,104380.0,104370.0,0.22036881]
[1750432059088,0.56398006,104380.0,104370.0,0.21078807]
[1750432059300,0.76516856,104380.0,104370.0,0.22036881]
[1750432059559,0.04328299,104370.0,104360.0,0.22038891]
[1750432059785,0.01454085,104370.0,104360.0,0.22038891]
[1750432060197,0.02412141,104370.0,104360.0,0.22038891]
[1750432060417,0.04328326,104370.0,104360.0,0.22038891]
[1750432060634,0.03370224,104370.0,104360.0,0.22038891]
[1750432060855,0.35454085,104370.0,104360.0,0.22038891]
[1750432061305,0.36412132,104370.0,104360.0,0.22038891]
[1750432061522,0.35916158,104370.0,104360.0,0.27230808]
[1750432061738,0.04328344,104370.0,104360.0,0.22038965]
[1750432061963,0.03370233,104370.0,104360.0,0.22038965]
[1750432062182,0.0241215,104370.0,104360.0,0.22038965]
[1750432062828,0.03370243,104370.0,104360.0,0.22038965]
[1750432063041,0.03370233,104370.0,104360.0,0.22038965]
[1750432063502,0.03370224,104370.0,104360.0,0.22038965]
[1750432063714,0.03370188,104370.0,104360.0,0.22038965]
[1750432063920,0.05286382,104370.0,104360.0,0.22038965]
[1750432064127,0.03370188,104370.0,104360.0,0.22038965]
[1750432064331,0.02412141,104370.0,104360.0,0.22038965]
[1750432064542,0.01454085,104370.0,104360.0,0.22038965]
[1750432065011,1.0013172,104390.0,104380.0,0.20118786]
[1750432065012,5.99788493,104390.0,104380.0,0.20118786]
[1750432065217,0.9750439,104390.0,104380.0,0.2299277]
[1750432065424,1.15462271,104390.0,104380.0,0.2299277]
[1750432065638,0.87018634,104390.0,104380.0,0.2299277]
[1750432065859,0.00014137,104400.0,104390.0,0.22032649]
[1750432066305,0.34014137,104400.0,104390.0,0.22032649]
[1750432066516,0.08373929,104400.0,104390.0,0.22032649]
[1750432066721,0.02426012,104400.0,104390.0,0.22032649]
[1750432066935,0.36426012,104400.0,104390.0,0.22032649]
[1750432067387,0.36426012,104400.0,104380.0,0.21076695]
[1750432067388,0.04327775,104390.0,104380.0,0.21076732]
[1750432067605,0.3986278,104390.0,104380.0,0.22034788]
[1750432067805,0.5685878,104390.0,104380.0,0.22034788]
[1750432068016,0.50010655,104390.0,104380.0,0.22992761]
[1750432068225,0.50968601,104390.0,104380.0,0.21076796]
[1750432068427,0.50010692,104390.0,104380.0,0.22034797]
[1750432068842,0.48094847,104390.0,104380.0,0.20118786]
[1750432069059,0.50326901,104390.0,104380.0,0.21076805]
[1750432069273,0.51280828,104390.0,104380.0,0.22992797]
[1750432069480,0.02411957,104390.0,104380.0,0.2395077]
[1750432069707,0.01454085,104390.0,104380.0,0.2395077]
[1750432069949,0.03369839,104390.0,104380.0,0.2395077]
[1750432070380,0.05285666,104390.0,104380.0,0.2395077]
[1750432070600,0.03369839,104390.0,104380.0,0.2395077]
[1750432070808,0.04327748,104390.0,104380.0,0.2395077]
[1750432071028,0.03369829,104390.0,104380.0,0.2395077]
[1750432071284,0.01454085,104390.0,104380.0,0.2826194]
[1750432071504,0.01454085,104390.0,104380.0,0.2395077]
[1750432071714,0.02426003,104400.0,104390.0,0.22032649]
[1750432071923,0.03383793,104400.0,104390.0,0.22032649]
[1750432072348,0.01468222,104400.0,104390.0,0.22032649]
[1750432072557,0.02425993,104400.0,104390.0,0.22032649]
[1750432072993,0.03383783,104400.0,104390.0,0.22032649]
[1750432073615,0.04341591,104400.0,104390.0,0.22032649]
[1750432074248,0.03383783,104400.0,104390.0,0.22032649]
[1750432074464,0.01468222,104400.0,104390.0,0.22032649]
[1750432074679,0.00014137,104400.0,104390.0,0.22032649]
[1750432075801,0.00971918,104400.0,104390.0,0.22032649]
[1750432076015,0.01929707,104400.0,104390.0,0.22032649]
[1750432076225,0.10235143,104400.0,104390.0,0.22032649]
[1750432076690,0.02425993,104400.0,104390.0,0.22032649]
[1750432076907,0.02426003,104400.0,104390.0,0.22032649]
[1750432077121,0.0434161,104400.0,104390.0,0.22032649]
[1750432077342,0.04341601,104400.0,104390.0,0.22032649]
[1750432077551,0.0338382,104400.0,104390.0,0.2203264]
[1750432077757,0.04341656,104400.0,104390.0,0.22990576]
[1750432080165,0.04328023,104380.0,104370.0,0.22993306]
[1750432080410,0.04328023,104380.0,104350.0,0.34960409]
[1750432080411,0.34,104370.0,104350.0,0.22467915]
[1750432080665,0.76506929,104360.0,104350.0,0.001133]
[1750432080886,5.9450038,104360.0,104350.0,0.001133]
[1750432081537,5.97285991,104360.0,104350.0,0.001133]
[1750432082002,5.9729953,104360.0,104350.0,0.001133]
[1750432082225,5.98228229,104360.0,104350.0,0.001133]
[1750432082440,6.02023163,104360.0,104350.0,0.001133]
[1750432082654,6.06638704,104360.0,104350.0,0.001133]
[1750432082916,6.11638704,104360.0,104350.0,0.001133]
[1750432083343,6.05944378,104360.0,104350.0,0.001133]
[1750432083567,5.82965351,104360.0,104350.0,0.001133]
[1750432083790,6.02117444,104360.0,104350.0,0.001133]
[1750432084214,6.00122486,104360.0,104350.0,0.001133]
[1750432084860,0.48744909,104360.0,104350.0,0.001133]
[1750432085075,0.39863561,104360.0,104350.0,0.2311269]
[1750432085298,0.03947212,104360.0,104350.0,0.35061075]
[1750432085528,0.03947212,104360.0,104350.0,0.30737184]
[1750432086418,0.00113539,104360.0,104350.0,0.33767184]
[1750432086641,0.00971696,104360.0,104350.0,0.33767184]
[1750432086907,0.34971696,104360.0,104350.0,0.30937184]
[1750432087126,0.34013539,104360.0,104350.0,0.36326524]
[1750432087342,0.34971677,104360.0,104350.0,0.30937184]
[1750432087557,0.35929843,104360.0,104350.0,0.2341269]
[1750432088203,0.36888027,104360.0,104350.0,0.2341269]
[1750432088420,0.39300315,104360.0,104350.0,0.2341269]
[1750432088641,0.38342112,104360.0,104350.0,0.2341269]
[1750432088862,0.38342085,104360.0,104350.0,0.2341269]
[1750432089565,0.3930026,104360.0,104350.0,0.2341269]
[1750432089989,0.3738391,104360.0,104350.0,0.2341269]
[1750432090426,0.00013539,104360.0,104350.0,0.63805077]
[1750432090676,0.00013539,104360.0,104350.0,0.2969269]
[1750432090903,0.00013539,104360.0,104350.0,0.2660269]
[1750432091141,0.00013539,104360.0,104350.0,0.4037269]
[1750432091574,0.00971677,104360.0,104350.0,0.2341269]
[1750432091797,0.01929825,104360.0,104350.0,0.2341269]
[1750432092011,0.02887982,104360.0,104350.0,0.2341269]
[1750432092249,0.01929825,104360.0,104350.0,0.2341269]
[1750432092483,0.00013539,104360.0,104350.0,0.2341269]
[1750432092897,0.01929853,104360.0,104350.0,0.2341269]
[1750432093111,0.02425772,104360.0,104350.0,0.2341269]
[1750432093930,0.03383929,104360.0,104350.0,0.2341269]
[1750432094143,0.05300316,104360.0,104350.0,0.2341269]
[1750432094381,0.04342113,104360.0,104350.0,0.2341269]
[1750432094877,0.03383929,104360.0,104350.0,0.2341269]
[1750432095095,0.03383929,104360.0,104350.0,0.2053788]
[1750432095096,0.24464737,104360.0,104350.0,0.2053788]
[1750432095309,0.32076325,104360.0,104350.0,0.004133]
[1750432095531,0.38616325,104360.0,104350.0,0.004133]
[1750432095789,0.35346325,104360.0,104350.0,0.004133]
[1750432095998,0.40645135,104360.0,104350.0,0.004133]
[1750432096233,0.40645135,104360.0,104350.0,0.001133]
[1750432096882,0.40645135,104360.0,104350.0,0.2023788]
[1750432097089,0.40745135,104360.0,104350.0,0.001133]
[1750432097728,5.49975735,104360.0,104350.0,0.001133]
[1750432098569,0.2139014,104360.0,104350.0,0.21196129]
[1750432098789,0.03483947,104360.0,104350.0,0.21196129]
[1750432099008,0.24664782,104360.0,104350.0,0.21196147]
[1750432099214,0.23706634,104360.0,104350.0,0.20237862]
[1750432099428,0.23606634,104360.0,104350.0,0.21196147]
[1750432099643,0.03383992,104360.0,104350.0,0.23112672]
[1750432099862,0.23506634,104360.0,104350.0,0.22154414]
[1750432100090,0.23506634,104360.0,104350.0,0.20237862]
[1750432100312,0.03846221,104360.0,104350.0,0.23112672]
[1750432100523,0.24464736,104360.0,104350.0,0.22154441]
[1750432100750,0.05300296,104360.0,104350.0,0.24070957]
[1750432100960,0.06258499,104360.0,104350.0,0.24070957]
[1750432101177,0.59423003,104360.0,104350.0,0.23112708]
[1750432101395,0.57506662,104360.0,104350.0,0.21196184]
[1750432101604,0.57506662,104360.0,104350.0,0.24070976]
[1750432101826,0.57506662,104360.0,104350.0,0.22154469]
[1750432102325,0.57506662,104360.0,104350.0,0.23112727]
[1750432102534,0.38342232,104360.0,104350.0,0.24070976]
[1750432102747,0.57506662,104360.0,104350.0,0.23112745]
[1750432102961,0.57506662,104360.0,104350.0,0.19279567]
[1750432103183,5.81983947,104360.0,104350.0,0.001133]
[1750432103433,5.87965894,104360.0,104350.0,0.001133]
[1750432103681,5.85153947,104360.0,104350.0,0.001133]
[1750432104652,5.85353947,104360.0,104350.0,0.001133]
[1750432104881,0.73688469,104360.0,104350.0,0.19279567]
[1750432105103,0.83116362,104360.0,104350.0,0.001133]
[1750432105526,0.83216362,104360.0,104350.0,0.001133]
[1750432107059,5.92726962,104360.0,104350.0,0.001133]
[1750432107283,5.87109343,104360.0,104350.0,0.001133]
[1750432107931,5.77582358,104360.0,104350.0,0.001133]
[1750432108816,5.79817207,104360.0,104350.0,0.001133]
[1750432109291,5.79036443,104360.0,104350.0,0.001133]
[1750432109528,5.78222937,104360.0,104350.0,0.001133]
[1750432109760,5.74962896,104360.0,104350.0,0.001133]
[1750432110005,0.52585843,104360.0,104350.0,0.001133]
[1750432110234,0.75316055,104360.0,104350.0,0.001133]
[1750432110699,5.8804364,104360.0,104350.0,0.001133]
[1750432111202,5.99412219,104360.0,104350.0,0.001133]
[1750432111420,5.96600272,104360.0,104350.0,0.001133]
[1750432113818,5.57527193,104360.0,104350.0,0.001133]
[1750432114058,5.55290561,104360.0,104350.0,0.001133]
[1750432114298,0.52089961,104360.0,104350.0,0.001133]
[1750432114531,0.53544046,104360.0,104350.0,0.001133]
[1750432115474,0.75308046,104360.0,104350.0,0.001133]
[1750432115707,0.84835031,104360.0,104350.0,0.001133]
[1750432116131,0.85793215,104360.0,104350.0,0.20237871]
[1750432116600,0.7626623,104360.0,104350.0,0.22154442]
[1750432116859,0.31608036,104360.0,104350.0,0.23112691]
[1750432117125,0.48528036,104360.0,104350.0,0.23112691]
[1750432117360,0.48528027,104360.0,104350.0,0.23112691]
[1750432117855,0.4948623,104360.0,104350.0,0.23112691]
[1750432118095,0.50444442,104360.0,104350.0,0.23112691]
[1750432118940,0.69608936,104360.0,104350.0,0.24070967]
[1750432119412,0.2240285,104360.0,104350.0,0.24070912]
[1750432119850,0.41567279,104360.0,104350.0,0.23112663]
[1750432120279,0.41567279,104360.0,104350.0,0.19279567]
[1750432120492,0.41567279,104360.0,104350.0,0.001133]
[1750432120493,0.48120629,104360.0,104350.0,0.001133]
[1750432120711,5.88601229,104360.0,104350.0,0.001133]
[1750432120922,5.94160743,104360.0,104350.0,0.001133]
[1750432121138,5.90840743,104360.0,104350.0,0.001133]
[1750432121351,6.00367728,104360.0,104350.0,0.001133]
[1750432121615,0.23001558,104340.0,104330.0,0.23000913]
[1750432122271,0.01454085,104330.0,104320.0,0.20139988]
[1750432122493,0.01454085,104330.0,104320.0,0.20140349]
[1750432122494,0.32068857,104330.0,104320.0,0.20140349]
[1750432122932,0.34842549,104330.0,104320.0,0.20140349]
[1750432123163,0.33884089,104330.0,104320.0,0.0001]
[1750432123611,0.41361708,104330.0,104320.0,0.0001]
[1750432123824,0.41361708,104330.0,104320.0,0.19181779]
[1750432124036,0.41361708,104330.0,104320.0,0.0001]
[1750432124253,5.44562308,104330.0,104320.0,0.0001]
[1750432124686,5.44562308,104330.0,104320.0,0.20140358]
[1750432124687,5.58804689,104330.0,104320.0,0.20140358]
[1750432124894,0.55604089,104330.0,104320.0,0.21498937]
[1750432125103,0.55604089,104330.0,104320.0,0.0001]
[1750432125530,0.55604089,104330.0,104320.0,0.0031]
[1750432126176,0.55604089,104330.0,104320.0,0.0001]
[1750432126387,0.55600089,104330.0,104320.0,0.0001]
[1750432126616,0.55600089,104330.0,104320.0,0.20140367]
[1750432127043,0.55600089,104330.0,104320.0,0.0001]
[1750432127514,0.63076908,104330.0,104320.0,0.0001]
[1750432127753,0.65316885,104330.0,104320.0,0.0001]
[1750432128007,0.63076908,104330.0,104320.0,0.0001]
[1750432128248,0.99319751,104330.0,104320.0,0.0001]
[1750432129884,6.02520351,104330.0,104320.0,0.0001]
[1750432130126,6.08980351,104330.0,104320.0,0.0001]
[1750432130596,6.11774228,104330.0,104320.0,0.0001]
[1750432131508,6.11874228,104330.0,104320.0,0.0001]
[1750432131969,6.14754628,104330.0,104320.0,0.0001]
[1750432132395,6.14854628,104330.0,104320.0,0.0001]
[1750432132844,6.12056751,104330.0,104320.0,0.0001]
[1750432133297,5.87024751,104330.0,104320.0,0.0001]
[1750432133515,0.49702906,104330.0,104320.0,0.21098928]
[1750432133748,0.83526004,104330.0,104320.0,0.24268928]
[1750432133967,0.83526004,104330.0,104320.0,0.0001]
[1750432134176,0.83526004,104330.0,104320.0,0.19181779]
[1750432134412,0.83526004,104330.0,104320.0,0.21098937]
[1750432134627,0.84980089,104330.0,104320.0,0.2301605]
[1750432135066,0.84980089,104330.0,104320.0,0.23974574]
[1750432135275,0.53869656,104330.0,104320.0,0.26974574]
[1750432135492,0.39386219,104330.0,104320.0,0.2601605]
[1750432135708,0.84980053,104330.0,104320.0,0.0001]
[1750432136139,0.84980053,104330.0,104320.0,0.19181779]
[1750432136496,0.84880053,104330.0,104320.0,0.19181779]
[1750432136713,0.84880053,104330.0,104320.0,0.0001]
[1750432136912,0.84880053,104330.0,104320.0,0.20140367]
[1750432137146,0.84880053,104330.0,104320.0,0.0001]
[1750432137355,0.94407038,104330.0,104320.0,0.0001]
[1750432137554,0.94407038,104330.0,104320.0,0.20140358]
[1750432137752,0.94407038,104330.0,104320.0,0.21098928]
[1750432138153,0.65710112,104330.0,104320.0,0.23016004]
[1750432138390,0.22082164,104330.0,104320.0,0.26266004]
[1750432138634,0.42210583,104330.0,104320.0,0.2530748]
[1750432138835,0.25314583,104330.0,104320.0,0.26266023]
[1750432139069,0.42202583,104330.0,104320.0,0.26266023]
[1750432139650,0.42202583,104330.0,104320.0,0.27224556]
[1750432139854,0.4316107,104330.0,104320.0,0.27224556]
[1750432140054,0.44119567,104330.0,104320.0,0.27224556]
[1750432140257,0.23991203,104330.0,104320.0,0.27224556]
[1750432140492,0.43161144,104330.0,104320.0,0.24348928]
[1750432140703,0.41244215,104330.0,104320.0,0.20140358]
[1750432140878,0.0422775,104330.0,104320.0,0.26115986]
[1750432141123,0.05186173,104330.0,104320.0,0.29435986]
[1750432141327,0.01815205,104330.0,104320.0,0.29435986]
[1750432141736,0.53755113,104340.0,104330.0,0.2825532]
[1750432141737,0.55209134,104340.0,104330.0,0.2825532]
[1750432141942,0.55209125,104340.0,104330.0,0.2825532]
[1750432142143,0.54250738,104340.0,104330.0,0.2825532]
[1750432142344,0.56167456,104340.0,104330.0,0.2825532]
[1750432142492,0.40088924,104340.0,104330.0,0.2825532]
[1750432142700,0.91638233,104350.0,104340.0,0.25173208]
[1750432142701,0.50778267,104350.0,104340.0,0.25173208]
[1750432142918,0.50778267,104350.0,104340.0,0.28393208]
[1750432142919,0.4982,104350.0,104340.0,0.28393208]
[1750432143482,0.70902773,104350.0,104340.0,0.27434868]
[1750432143701,0.55480706,104350.0,104340.0,0.23001567]
[1750432143935,0.51736506,104350.0,104340.0,0.29321567]
[1750432144147,0.4982,104350.0,104340.0,0.29321567]
[1750432144368,0.5077823,104350.0,104340.0,0.29321567]
[1750432144600,0.4982,104350.0,104340.0,0.29321567]
[1750432144845,0.5077823,104350.0,104340.0,0.29321567]
[1750432145058,0.5087823,104350.0,104340.0,0.29321567]
[1750432145286,0.52794792,104350.0,104340.0,0.29321567]
[1750432145478,0.51736507,104350.0,104340.0,0.26011567]
[1750432145717,0.4982,104350.0,104340.0,0.26011567]
[1750432145943,0.4982,104350.0,104340.0,0.29321567]
[1750432145944,0.51736479,104350.0,104340.0,0.29321567]
[1750432146165,0.52694746,104350.0,104340.0,0.29321567]
[1750432146598,0.5077823,104350.0,104340.0,0.29321567]
[1750432146813,0.01916479,104350.0,104340.0,0.29321567]
[1750432147027,0.03833041,104350.0,104340.0,0.26011567]
[1750432147687,0.23495264,104350.0,104340.0,0.20126481]
[1750432147910,0.05181066,104350.0,104340.0,0.23001594]
[1750432148378,0.24455698,104340.0,104330.0,0.20128419]
[1750432148609,0.21086796,104330.0,104320.0,0.2422891]
[1750432148834,0.02875333,104330.0,104320.0,0.23015986]
[1750432149057,0.2396224,104330.0,104320.0,0.23015986]
[1750432149495,0.24457911,104330.0,104320.0,0.22057462]
[1750432149724,0.01454085,104330.0,104320.0,0.23015986]
[1750432149931,0.34434418,104340.0,104330.0,0.22045302]
[1750432149932,0.40361265,104340.0,104330.0,0.22045302]
[1750432150148,0.00958331,104340.0,104330.0,0.25295302]
[1750432150389,1.05758153,104350.0,104340.0,0.22043236]
[1750432150607,1.04799877,104350.0,104340.0,0.21084905]
[1750432150825,0.36768649,104350.0,104340.0,0.27209999]
[1750432151040,0.17822239,104350.0,104340.0,0.27209999]
[1750432151255,0.01916497,104350.0,104340.0,0.27209999]
[1750432151483,0.24453429,104350.0,104330.0,0.39083941]
[1750432151703,0.01916671,104340.0,104330.0,0.2911378]
[1750432151927,0.21188905,104350.0,104340.0,0.22043208]
[1750432152175,0.40355172,104350.0,104340.0,0.22043208]
[1750432152393,0.41313476,104350.0,104340.0,0.22043208]
[1750432152812,0.22147209,104350.0,104340.0,0.22043208]
[1750432153254,0.41313476,104350.0,104340.0,0.21084868]
[1750432153537,0.0388501,104370.0,104360.0,0.22038983]
[1750432153757,2.24168842,104400.0,104390.0,0.21074787]
[1750432153758,7.30012088,104400.0,104390.0,0.21074787]
[1750432153982,2.359539,104400.0,104390.0,0.22990577]
[1750432154201,2.11448172,104400.0,104390.0,0.22990577]
[1750432154418,2.02878087,104400.0,104390.0,0.22990577]
[1750432154641,2.19734096,104400.0,104390.0,0.22032696]
[1750432154884,2.31176761,104400.0,104390.0,0.22990587]
[1750432155101,2.00004708,104400.0,104390.0,0.23948468]
[1750432155321,2.01920297,104400.0,104390.0,0.23948468]
[1750432155544,2.03374373,104400.0,104390.0,0.23948468]
[1750432155771,0.19158923,104390.0,104370.0,0.22322594]
[1750432156018,0.01915937,104380.0,104370.0,0.25086863]
[1750432156244,0.48908746,104390.0,104380.0,0.20118786]
[1750432156531,0.50824545,104390.0,104380.0,0.21076787]
[1750432156787,0.22034751,104380.0,104370.0,0.20120687]
[1750432157021,0.22034751,104380.0,104360.0,0.23422578]
[1750432157022,0.01454085,104370.0,104360.0,0.26297131]
[1750432157269,0.33016729,104380.0,104370.0,0.21078825]
[1750432157520,0.33016729,104380.0,104370.0,0.22036918]
[1750432157763,0.33016729,104380.0,104370.0,0.21078825]
[1750432157997,0.32058756,104380.0,104370.0,0.22036918]
[1750432158475,0.32058756,104380.0,104370.0,0.22995001]
[1750432158714,0.32058756,104380.0,104370.0,0.23953075]
[1750432158951,0.12897998,104380.0,104370.0,0.22036872]
[1750432159193,0.13856035,104380.0,104370.0,0.21078789]
[1750432159410,0.33016793,104380.0,104370.0,0.22036954]
[1750432159629,0.32058792,104380.0,104370.0,0.21078834]
[1750432159907,0.32058792,104380.0,104370.0,0.22036936]
[1750432160155,0.32058792,104380.0,104370.0,0.22995029]
[1750432160400,0.24446828,104380.0,104370.0,0.28594883]
[1750432160635,0.23488864,104380.0,104370.0,0.23953112]
[1750432160876,0.22530872,104380.0,104370.0,0.21078834]
[1750432161737,0.22530872,104380.0,104370.0,0.20120723]
[1750432161958,0.01916341,104360.0,104350.0,0.24122773]
[1750432162174,0.01916341,104360.0,104350.0,0.19166267]
[1750432162175,0.22534902,104360.0,104350.0,0.19166267]
[1750432162406,0.21576718,104360.0,104340.0,0.22398104]
[1750432162615,0.02875049,104340.0,104330.0,0.25065329]
[1750432162822,0.03833435,104340.0,104330.0,0.23003798]